bitfinex-derivatives/quotes_SOLF0:USTF0_20241211
["timestamp","ask_amount","ask_price","bid_price","bid_amount"]
[1733887017943,17.78495224,217.99,217.94,4.95889355]
[1733887018145,17.78495224,217.99,217.93,6.15948487]
[1733887018451,17.78495224,217.99,217.91,30.15762209]
[1733887018649,2.2925,217.97,217.92,7.25240318]
[1733887018854,2.2925,217.97,217.92,8.45238487]
[1733887019047,17.78495224,217.99,217.92,2.2929]
[1733887019953,2.2924,217.97,217.92,2.2929]
[1733887020853,2.2922,217.99,217.93,2.2927]
[1733887021143,5.6154,218.08,217.91,8.23968261]
[1733887022048,5.6154,218.08,217.93,24.60959656]
[1733887022247,5.6154,218.08,217.94,11.1080946]
[1733887022450,5.6154,218.08,217.93,24.60959656]
[1733887022749,2.2917,218.03,217.98,2.2922]
[1733887023054,17.78495224,218.05,217.96,2.72]
[1733887023247,17.78495224,218.05,217.95,2.72]
[1733887024152,2.2919,218.01,217.97,2.2923]
[1733887024554,17.78495224,218.05,217.95,2.72]
[1733887024753,17.78495224,218.05,217.94,2.72]
[1733887025149,2.8954,218.08,217.94,2.72]
[1733887025348,1.4576,218.08,218.04,2.2915]
[1733887025944,17.78495224,218.13,218.02,2.72]
[1733887026144,1.4459,218.14,218.02,2.72]
[1733887026753,2.2909,218.11,218.07,2.2913]
[1733887026948,1.4459,218.14,218.07,2.72]
[1733887027346,2.2908,218.13,218.08,2.2911]
[1733887027653,1.4459,218.14,218.08,2.2911]
[1733887028649,2.2908,218.12,218.07,5.0113]
[1733887029154,2.2908,218.12,218.08,2.2912]
[1733887029852,17.78495224,218.17,218.1,2.291]
[1733887030050,5.53581572,218.2,218.07,2.72]
[1733887030551,2.9473,218.22,218.07,2.72]
[1733887031052,2.9473,218.22,218.13,2.2907]
[1733887031556,2.2901,218.19,218.13,2.2907]
[1733887032552,2.2902,218.18,218.13,2.2907]
[1733887033745,2.29,218.19,218.14,2.2906]
[1733887034451,2.2899,218.2,218.16,2.2904]
[1733887034649,1.4866,218.22,218.12,2.7]
[1733887034956,1.4866,218.22,218.15,2.2905]
[1733887035250,1.4866,218.22,218.12,2.7]
[1733887035647,2.2898,218.21,218.16,2.2903]
[1733887036053,1.4866,218.22,218.07,5.43446957]
[1733887036257,2.2903,218.17,218.11,2.2909]
[1733887036453,17.78495224,218.2,218.08,2.7]
[1733887036761,4.1866,218.22,218.08,2.7]
[1733887036762,17.78495224,218.16,218.08,2.7]
[1733887037054,17.78495224,218.16,217.96,17.78495224]
[1733887037055,2.7,218.15,217.96,17.78495224]
[1733887037256,2.2913,218.08,218.02,45.68596851]
[1733887037460,17.78495224,218.11,218.02,51.07699054]
[1733887037657,1.4725,218.1,218.02,51.07699054]
[1733887037860,2.2912,218.08,218.02,51.07699054]
[1733887038057,1.4725,218.1,218.02,51.07699054]
[1733887038455,1.4725,218.1,218.06,2.2914]
[1733887038855,1.4725,218.1,218.02,51.07699054]
[1733887039062,1.4725,218.1,218.06,2.2913]
[1733887039554,1.4725,218.1,218.02,51.07699054]
[1733887040158,1.4725,218.1,218.06,2.2914]
[1733887040365,1.4725,218.1,218.02,51.07699054]
[1733887040864,2.2907,218.13,218.07,2.2913]
[1733887041065,1.347,218.18,218.07,2.7]
[1733887041460,1.3905,218.23,218.08,17.78495224]
[1733887041665,17.78495224,218.27,218.08,17.78495224]
[1733887041666,19.13195224,218.27,218.08,17.78495224]
[1733887042666,19.13195224,218.27,218.16,2.2903]
[1733887042667,2.2897,218.22,218.16,2.2903]
[1733887042866,19.13195224,218.27,218.14,2.7]
[1733887044065,2.2901,218.19,218.14,4.9905]
[1733887044367,19.13195224,218.27,218.14,2.7]
[1733887044568,2.2904,218.16,218.14,2.7]
[1733887044763,2.7,218.22,218.1,2.7]
[1733887044969,4.1211,218.22,218.1,2.7]
[1733887045172,2.2903,218.17,218.11,2.2908]
[1733887045462,4.1211,218.22,218.11,2.2908]
[1733887045869,5.5638,218.22,218.09,2.2911]
[1733887046070,5.5638,218.22,218.08,2.7]
[1733887047267,2.2903,218.17,218.11,2.2908]
[1733887047665,5.5638,218.22,218.11,2.2908]
[1733887048067,2.2903,218.17,218.11,2.2908]
[1733887048769,2.2904,218.16,218.11,2.2908]
[1733887050375,2.2906,218.14,218.1,5.58985507]
[1733887051276,5.5638,218.22,218.1,7.88085507]
[1733887051568,65.68,218.4,218.1,7.88085507]
[1733887051569,4.5753,218.43,218.13,17.78495224]
[1733887051768,17.78495224,218.33,218.14,4.1102]
[1733887051967,17.78495224,218.33,218.17,17.78495224]
[1733887052173,1.4607,218.34,218.17,17.78495224]
[1733887052376,2.2888,218.31,218.17,17.78495224]
[1733887052780,1.4607,218.34,218.21,2.2898]
[1733887052972,2.2891,218.29,218.22,2.7]
[1733887053171,17.78495224,218.33,218.22,2.7]
[1733887053571,2.2892,218.27,218.22,2.7]
[1733887053777,17.78495224,218.33,218.21,5.49878599]
[1733887054589,1.4607,218.34,218.21,5.49878599]
[1733887057271,2.2892,218.28,218.22,2.2897]
[1733887058179,2.2892,218.28,218.23,2.2896]
[1733887058876,1.4607,218.34,218.21,8.19878599]
[1733887059479,2.2894,218.26,218.21,10.48848599]
[1733887059678,17.78495224,218.3,218.21,10.48848599]
[1733887059980,2.2892,218.27,218.21,10.48848599]
[1733887060180,1.3726,218.29,218.21,10.48848599]
[1733887060680,1.3726,218.29,218.19,2.29]
[1733887060876,17.78495224,218.26,218.1,5.58985507]
[1733887061083,20.48495224,218.26,218.11,2.7]
[1733887061307,2.2902,218.18,218.13,2.2907]
[1733887061782,1.3764,218.25,218.11,2.7]
[1733887061783,1.3883,218.24,218.11,2.7]
[1733887061977,2.2903,218.17,218.12,4.9908]
[1733887062582,5.55215089,218.37,218.16,17.78495224]
[1733887062777,2.8686,218.36,218.17,4.1656]
[1733887062980,2.8686,218.36,218.21,17.78495224]
[1733887063180,5.1569,218.36,218.22,2.7]
[1733887063683,2.8686,218.36,218.22,2.7]
[1733887064983,2.8686,218.36,218.27,2.2892]
[1733887066681,2.2886,218.33,218.27,2.2892]
[1733887066882,2.2886,218.33,218.27,7.90656956]
[1733887067081,2.2887,218.32,218.27,7.90656956]
[1733887067277,2.8686,218.36,218.27,5.61736956]
[1733887067485,1.4803,218.36,218.27,5.61736956]
[1733887068381,19.26995224,218.42,218.27,5.61736956]
[1733887068382,2.2879,218.4,218.27,5.61736956]
[1733887068581,19.26995224,218.42,218.27,7.01956956]
[1733887068976,2.2881,218.38,218.32,2.2887]
[1733887069480,19.26995224,218.42,218.32,2.2887]
[1733887069684,2.2884,218.36,218.31,2.7]
[1733887070080,2.2884,218.36,218.31,4.9887]
[1733887072486,17.78495224,218.42,218.31,2.7]
[1733887072786,6.8562,218.64,218.31,2.7]
[1733887072787,17.78495224,218.49,218.31,2.7]
[1733887072985,20.48495224,218.49,218.31,2.7]
[1733887074693,2.2878,218.4,218.35,2.2884]
[1733887075489,2.2881,218.38,218.33,2.2885]
[1733887075686,2.7,218.43,218.29,17.78495224]
[1733887075988,2.2881,218.38,218.29,2.7]
[1733887076190,17.78495224,218.37,218.19,1.3636]
[1733887076391,20.55575224,218.37,218.19,1.3636]
[1733887076590,2.2891,218.28,218.25,5.56427655]
[1733887076888,20.55575224,218.37,218.25,5.56427655]
[1733887078394,2.2889,218.3,218.25,5.56427655]
[1733887078595,20.55575224,218.37,218.25,5.56427655]
[1733887078897,2.2885,218.34,218.25,5.56427655]
[1733887079098,20.55575224,218.37,218.25,5.56427655]
[1733887079594,2.2891,218.28,218.25,5.56427655]
[1733887080289,2.289,218.3,218.25,5.56427655]
[1733887080596,2.7708,218.37,218.25,5.56427655]
[1733887080792,2.7708,218.37,218.31,2.2887]
[1733887080793,2.2883,218.36,218.31,2.2887]
[1733887080993,1.3944,218.42,218.31,2.7]
[1733887082499,2.2884,218.36,218.31,4.9888]
[1733887082801,2.2884,218.36,218.31,2.7]
[1733887083300,2.2884,218.35,218.31,2.7]
[1733887083596,1.3944,218.42,218.31,2.7]
[1733887083805,17.78495224,218.41,218.31,2.7]
[1733887084403,2.7,218.4,218.26,19.24515224]
[1733887084704,2.7,218.4,218.27,2.7]
[1733887085094,2.7,218.4,218.28,2.2891]
[1733887086104,2.2886,218.33,218.28,2.2891]
[1733887089708,2.2886,218.33,218.29,2.289]
[1733887090204,2.2885,218.35,218.27,2.7]
[1733887090603,2.2885,218.34,218.27,2.7]
[1733887090906,2.2885,218.34,218.3,2.2889]
[1733887093203,17.78495224,218.41,218.27,2.7]
[1733887093798,17.78495224,218.41,218.29,2.2889]
[1733887093799,2.2885,218.34,218.29,2.2889]
[1733887095304,2.2885,218.34,218.3,2.2888]
[1733887095802,2.2885,218.34,218.27,2.7]
[1733887095803,2.2889,218.31,218.27,2.2892]
[1733887096005,11.07728332,218.31,218.2,45.24241607]
[1733887096305,1.4269,218.3,218.21,5.44747444]
[1733887096510,2.2896,218.24,218.21,5.44747444]
[1733887096709,11.07728332,218.28,218.2,45.24241607]
[1733887096910,1.4269,218.3,218.2,45.24241607]
[1733887097205,2.2898,218.22,218.2,45.24241607]
[1733887097704,2.2898,218.21,218.2,45.24241607]
[1733887098111,1.4269,218.3,218.2,2.29147571]
[1733887098305,1.4269,218.3,218.22,11.07728332]
[1733887098508,1.481,218.34,218.22,11.07728332]
[1733887099307,1.481,218.34,218.21,2.7]
[1733887099810,4.181,218.34,218.21,2.7]
[1733887100407,2.289,218.29,218.23,2.2896]
[1733887100998,2.2889,218.31,218.25,2.2894]
[1733887101199,1.481,218.34,218.21,2.7]
[1733887101507,2.2888,218.32,218.26,2.2893]
[1733887101703,1.481,218.34,218.26,2.2893]
[1733887102009,2.2889,218.31,218.25,2.2894]
[1733887102203,2.2889,218.31,218.21,2.7]
[1733887102406,1.481,218.34,218.21,2.7]
[1733887102606,2.2885,218.34,218.21,2.7]
[1733887102802,2.2885,218.34,218.22,1.4538]
[1733887103207,2.2885,218.34,218.28,2.289]
[1733887103510,2.2885,218.34,218.27,2.7]
[1733887103807,1.4436,218.35,218.27,2.7]
[1733887103808,2.2887,218.33,218.27,2.7]
[1733887105715,2.2887,218.33,218.29,2.289]
[1733887105912,1.4436,218.35,218.27,2.7]
[1733887106106,1.4436,218.35,218.27,4.9891]
[1733887106410,1.4436,218.35,218.27,2.7]
[1733887106606,2.2888,218.31,218.27,2.7]
[1733887107010,2.2889,218.3,218.27,2.7]
[1733887107210,1.4436,218.35,218.2,20.02055835]
[1733887107517,1.4181,218.34,218.21,2.7]
[1733887108009,0.20593,218.4,218.21,2.7]
[1733887108207,1.3808,218.39,218.21,2.7]
[1733887109111,1.3808,218.39,218.28,17.72908264]
[1733887109316,1.3808,218.39,218.29,2.7]
[1733887109515,0.20593,218.4,218.29,2.7]
[1733887110115,0.20593,218.4,218.3,2.8502]
[1733887110518,0.20593,218.4,218.32,17.72908264]
[1733887111017,17.72908264,218.38,218.26,6.18079688]
[1733887111215,17.72908264,218.38,218.23,5.56434862]
[1733887111216,1.4108,218.37,218.23,5.56434862]
[1733887111717,2.2884,218.35,218.29,2.289]
[1733887111913,1.4108,218.37,218.23,5.56434862]
[1733887112109,2.2886,218.33,218.23,5.56434862]
[1733887113410,2.2887,218.32,218.25,2.2894]
[1733887113812,2.2887,218.32,218.23,5.56434862]
[1733887114019,2.2886,218.33,218.26,2.2893]
[1733887114217,2.7,218.35,218.23,5.56434862]
[1733887114612,2.2887,218.32,218.24,2.2894]
[1733887115019,2.7,218.35,218.24,2.2894]
[1733887115217,2.7,218.35,218.23,5.56434862]
[1733887115218,2.2888,218.31,218.23,5.56434862]
[1733887115518,2.2888,218.31,218.25,2.2894]
[1733887115921,17.72908264,218.34,218.23,5.56434862]
[1733887116119,17.72908264,218.34,218.2,2.29147571]
[1733887116314,17.72908264,218.34,218.22,5.54262283]
[1733887116513,2.2893,218.26,218.2,4.58127571]
[1733887116719,20.42908264,218.3,218.2,2.29147571]
[1733887117017,4.0885,218.29,218.2,2.29147571]
[1733887117223,5.4852,218.29,218.2,2.29147571]
[1733887117420,1.351,218.28,218.2,2.29147571]
[1733887117917,17.72908264,218.26,218.2,0.05887571]
[1733887118117,2.29,218.19,218.16,42.95928935]
[1733887118320,20.42908264,218.23,218.16,42.95928935]
[1733887118516,2.7,218.22,218.11,5.53877493]
[1733887118718,17.72908264,218.19,218.06,6.3472]
[1733887118915,1.4151,218.18,218.07,2.29284174]
[1733887119126,2.7,218.17,218.08,5.4053141]
[1733887119326,2.7,218.17,218.1,2.291]
[1733887120920,4.9903,218.17,218.08,5.4053141]
[1733887121227,2.8118,218.18,218.08,5.4053141]
[1733887121425,2.2903,218.17,218.08,5.4053141]
[1733887122318,2.8118,218.18,218.08,5.4053141]
[1733887122519,2.2904,218.16,218.08,5.4053141]
[1733887123324,2.2905,218.15,218.08,5.4053141]
[1733887123529,2.8118,218.18,218.08,5.4053141]
[1733887124026,2.2904,218.16,218.09,2.291]
[1733887124420,2.8118,218.18,218.09,2.291]
[1733887124622,2.8118,218.18,218.06,2.7]
[1733887125127,2.2907,218.14,218.07,5.60606595]
[1733887125431,2.8118,218.18,218.07,5.60606595]
[1733887127224,2.2904,218.16,218.07,5.60606595]
[1733887127427,2.8118,218.18,218.07,5.60606595]
[1733887127724,2.291,218.1,218.02,4.1337]
[1733887128332,2.7,218.14,218.02,4.1337]
[1733887128526,2.7,218.14,218.02,1.4337]
[1733887128721,2.7,218.14,218.02,4.1337]
[1733887128928,2.2908,218.12,218.05,2.2915]
[1733887129122,2.8118,218.18,218.04,5.56527547]
[1733887129323,2.7,218.17,218.04,5.56527547]
[1733887129525,2.7,218.17,218.08,2.2912]
[1733887129526,2.2905,218.15,218.08,2.2912]
[1733887129824,2.7,218.17,218.04,5.56527547]
[1733887130233,2.2904,218.16,218.07,2.2912]
[1733887130434,2.2904,218.16,218.04,5.56527547]
[1733887131736,2.2904,218.16,218.09,2.2911]
[1733887131934,2.2904,218.16,218.04,5.56527547]
[1733887132236,2.2905,218.15,218.09,2.2911]
[1733887133732,13.9108046,218.18,218.12,2.2908]
[1733887133930,1.4151,218.18,218.12,2.2908]
[1733887134637,2.2903,218.17,218.12,2.2908]
[1733887135836,2.2903,218.17,218.11,2.2909]
[1733887137433,2.2904,218.16,218.11,2.2909]
[1733887137629,12.5141046,218.18,218.09,2.291]
[1733887137836,11.0990046,218.15,218.07,2.7]
[1733887139035,2.2907,218.13,218.08,2.2912]
[1733887139240,11.0990046,218.15,218.02,1.4337]
[1733887139438,11.0990046,218.15,218.02,4.1337]
[1733887139739,11.0990046,218.15,218.06,2.2914]
[1733887140141,2.2909,218.12,218.07,2.2913]
[1733887140641,11.0990046,218.15,218.04,5.53454598]
[1733887141141,11.0990046,218.15,218.04,16.63355058]
[1733887141338,13.3896046,218.15,218.1,2.2909]
[1733887142639,2.2906,218.14,218.1,2.2909]
[1733887142841,11.0990046,218.15,218.07,2.7]
[1733887143038,4.1151,218.18,218.12,2.2908]
[1733887143039,15.2141046,218.18,218.12,2.2908]
[1733887143239,12.5141046,218.18,218.07,2.7]
[1733887143942,14.8043046,218.18,218.13,2.2906]
[1733887144142,12.5141046,218.18,218.07,2.7]
[1733887144842,12.5141046,218.18,218.04,16.63355058]
[1733887144843,12.5141046,218.18,218.04,5.53454598]
[1733887145042,2.2906,218.14,218.09,2.291]
[1733887145437,2.2909,218.11,218.06,2.2914]
[1733887145636,2.7,218.14,218.06,2.2914]
[1733887145839,2.7,218.14,217.97,1.3975]
[1733887145840,11.0990046,218.12,217.98,11.0990046]
[1733887146036,11.0990046,218.12,218.0,2.7]
[1733887146545,11.0990046,218.09,217.97,4.0975]
[1733887146943,13.7990046,218.09,217.97,4.0975]
[1733887147139,13.7990046,218.09,217.97,2.7]
[1733887147843,11.0990046,218.06,217.96,1.4151]
[1733887148044,11.0990046,218.06,217.96,2.7]
[1733887148445,2.2915,218.05,218.0,2.292]
[1733887148939,2.2915,218.05,217.97,5.42351365]
[1733887149139,2.2915,218.05,218.01,2.2919]
[1733887149946,1.4857,218.08,217.97,5.42351365]
[1733887150342,254.4027428,218.39,218.16,2.2903]
[1733887150343,2.2898,218.22,218.16,2.2903]
[1733887150542,11.0990046,218.25,218.13,2.7]
[1733887151149,26.09947191,218.26,218.13,2.7]
[1733887151446,1.3501,218.24,218.13,2.7]
[1733887151846,2.2901,218.19,218.13,2.7]
[1733887152451,2.7,218.22,218.13,2.7]
[1733887153043,2.2901,218.19,218.13,2.7]
[1733887153844,2.2901,218.19,218.14,2.2906]
[1733887154150,2.2901,218.19,218.13,2.7]
[1733887154446,2.2902,218.18,218.13,2.7]
[1733887155649,2.2902,218.18,218.13,4.9906]
[1733887156640,2.2903,218.17,218.13,2.7]
[1733887156852,2.2903,218.17,218.12,2.2908]
[1733887157254,2.7,218.22,218.09,5.46937975]
[1733887157455,20.44975254,218.22,218.09,5.46937975]
[1733887157758,20.44975254,218.22,218.08,2.7]
[1733887157957,2.2906,218.14,218.09,2.2911]
[1733887159848,2.2906,218.14,218.07,2.7]
[1733887160049,2.2906,218.14,218.09,2.2911]
[1733887161153,2.7,218.17,218.07,2.2912]
[1733887161356,2.8272,218.16,218.07,2.2912]
[1733887161751,2.2909,218.11,218.03,2.7]
[1733887162454,2.291,218.1,218.03,2.7]
[1733887163253,1.3808,218.15,218.03,2.7]
[1733887164460,3.6713,218.15,218.1,2.2909]
[1733887164654,1.4047,218.16,218.03,2.7]
[1733887164859,1.4047,218.16,218.06,17.74975254]
[1733887165059,1.4047,218.16,218.12,2.2907]
[1733887165851,2.2905,218.15,218.1,2.7]
[1733887166050,1.4047,218.16,218.1,2.7]
[1733887167561,1.4047,218.16,218.12,2.2907]
[1733887167860,2.2905,218.15,218.04,1.4893]
[1733887168154,2.2905,218.15,218.07,2.7]
[1733887168455,3.6951,218.16,218.07,2.7]
[1733887169051,3.6951,218.16,218.11,2.2908]
[1733887169052,2.2905,218.15,218.11,2.2908]
[1733887169453,1.4047,218.16,218.07,2.7]
[1733887170359,2.2906,218.14,218.1,2.291]
[1733887170658,1.4047,218.16,218.05,5.36370767]
[1733887170864,1.4047,218.16,218.07,2.2913]
[1733887171161,11.10231892,218.14,218.05,2.7]
[1733887171357,2.2909,218.11,218.06,2.2913]
[1733887171558,11.10231892,218.14,218.06,2.2913]
[1733887171963,12.58581892,218.14,218.06,2.2913]
[1733887172556,2.2911,218.1,218.02,2.7]
[1733887172863,12.58581892,218.14,218.01,2.7]
[1733887173165,12.58581892,218.14,218.01,8.19848802]
[1733887173561,11.10231892,218.11,218.01,8.19848802]
[1733887173757,2.2913,218.07,218.01,5.49848802]
[1733887174764,2.2913,218.07,218.02,2.2917]
[1733887175066,1.4835,218.14,218.0,45.69073841]
[1733887175267,11.10231892,218.11,218.0,45.69073841]
[1733887175567,11.10231892,218.11,218.0,51.27549126]
[1733887176167,2.2914,218.07,218.0,48.57549126]
[1733887176566,2.2914,218.07,218.0,42.99073841]
[1733887176767,2.2912,218.09,218.0,42.99073841]
[1733887177071,11.10231892,218.11,218.0,42.99073841]
[1733887177363,2.2913,218.08,218.03,2.2916]
[1733887177864,2.2913,218.08,218.02,2.2918]
[1733887178066,2.2913,218.08,218.0,42.99073841]
[1733887178963,2.2913,218.08,218.03,2.2916]
[1733887179163,11.10231892,218.11,218.0,48.52536535]
[1733887179768,2.2914,218.06,218.02,2.2918]
[1733887180069,11.10231892,218.11,218.0,48.52536535]
[1733887180470,2.2913,218.07,218.0,48.52536535]
[1733887181070,2.2913,218.07,218.02,2.2918]
[1733887181468,9.75499877,218.14,218.0,42.99073841]
[1733887181469,11.10231892,218.08,218.0,42.99073841]
[1733887181876,1.4069,218.07,218.0,42.99073841]
[1733887182074,2.2919,218.01,218.0,42.99073841]
[1733887182771,11.10231892,218.05,218.0,42.99073841]
[1733887182977,1.4069,218.07,218.0,42.99073841]
[1733887184277,1.4069,218.07,217.97,2.7]
[1733887184471,1.4069,218.07,217.95,5.53132812]
[1733887184770,11.10231892,218.05,217.95,2.7]
[1733887185578,2.2921,218.0,217.96,2.2924]
[1733887185775,11.10231892,218.05,217.91,11.10231892]
[1733887185973,12.50331892,218.05,217.93,8.21257077]
[1733887186175,2.7,218.04,217.93,8.21257077]
[1733887186676,2.2921,218.0,217.95,2.2925]
[1733887186876,2.7,218.04,217.95,2.2925]
[1733887187069,2.7,218.04,217.92,2.7]
[1733887187272,2.2923,217.98,217.94,2.2926]
[1733887187476,11.10231892,218.02,217.92,2.7]
[1733887188076,11.10231892,218.02,217.94,2.2926]
[1733887189279,2.2924,217.97,217.94,2.2926]
[1733887189580,2.2924,217.97,217.93,2.2928]
[1733887191378,2.2924,217.97,217.94,2.2927]
[1733887192675,11.10231892,218.02,217.94,2.2927]
[1733887192878,11.10231892,218.02,217.92,2.7]
[1733887194075,2.2921,217.99,217.95,2.2925]
[1733887194479,2.2921,217.99,217.92,2.7]
[1733887194682,2.292,218.01,217.92,2.7]
[1733887194882,11.10231892,218.02,217.92,2.7]
[1733887195681,5.56254055,218.04,217.92,2.7]
[1733887195987,16.66485947,218.04,217.92,2.7]
[1733887196584,11.10231892,218.04,217.92,2.7]
[1733887197385,2.2918,218.02,217.99,2.2921]
[1733887197579,11.10231892,218.04,217.92,2.7]
[1733887197785,11.10231892,218.04,217.96,2.2924]
[1733887197786,2.292,218.0,217.96,2.2924]
[1733887197988,2.292,218.0,217.9,5.61681368]
[1733887197989,11.10231892,218.04,217.92,2.7]
[1733887198591,2.2921,218.0,217.92,2.7]
[1733887199284,2.2921,218.0,217.94,2.2926]
[1733887199483,2.2921,218.0,217.92,2.7]
[1733887199886,11.10231892,218.04,217.92,2.7]
[1733887200088,2.2922,217.99,217.95,2.2925]
[1733887202793,2.2917,218.03,217.99,2.2921]
[1733887203488,2.2919,218.02,217.91,13.80231892]
[1733887204089,11.10231892,218.04,217.91,2.7]
[1733887204295,11.10231892,218.01,217.91,2.7]
[1733887204492,2.2922,217.98,217.94,2.2926]
[1733887204795,11.10231892,218.01,217.91,2.7]
[1733887204984,2.2917,218.03,217.99,2.2921]
[1733887205192,9.40233924,218.03,217.99,2.2921]
[1733887205487,7.11063924,218.01,217.99,2.2921]
[1733887205795,7.11063924,218.01,218.0,2.292]
[1733887206189,7.11063924,218.03,218.0,2.292]
[1733887206389,7.11063924,218.01,217.98,2.2922]
[1733887207390,7.11063924,218.01,217.99,2.2921]
[1733887208290,7.11063924,218.01,217.97,2.2923]
[1733887208490,7.11063924,218.01,217.96,2.7]
[1733887208685,7.11063924,217.99,217.96,2.7]
[1733887209297,7.11063924,217.99,217.96,4.9924]
[1733887209794,7.11063924,217.99,217.96,2.2924]
[1733887210296,7.11063924,217.99,217.97,2.2924]
[1733887210788,1.401,218.05,217.92,9.81063924]
[1733887210991,7.11063924,218.02,217.99,2.2921]
[1733887211188,8.53283924,218.06,217.99,7.11063924]
[1733887211596,7.11063924,218.06,217.99,7.11063924]
[1733887212392,7.11063924,218.06,218.01,2.2919]
[1733887212598,7.11063924,218.04,217.97,9.81063924]
[1733887212797,7.11063924,218.04,217.97,2.7]
[1733887212998,7.11063924,218.04,218.0,2.292]
[1733887214088,9.40233924,218.04,218.0,2.292]
[1733887215398,2.2917,218.04,218.0,2.292]
[1733887215797,2.2916,218.05,218.0,2.292]
[1733887216200,11.11029498,218.06,218.0,2.292]
[1733887216995,13.40179498,218.06,218.02,2.2918]
[1733887217706,11.11029498,218.06,217.97,2.7]
[1733887217996,11.11029498,218.06,217.95,2.7]
[1733887218197,2.2918,218.03,217.97,2.2923]
[1733887218403,13.81029498,218.06,217.95,2.7]
[1733887219605,2.2919,218.02,217.98,2.2922]
[1733887221298,11.11029498,218.0,217.9,2.7]
[1733887221601,11.11029498,217.97,217.88,2.7]
[1733887221993,2.2926,217.95,217.9,2.293]
[1733887222192,11.11029498,217.97,217.87,2.7]
[1733887222596,2.2926,217.95,217.9,2.293]
[1733887223104,11.11029498,217.97,217.88,5.40913165]
[1733887223297,2.2926,217.96,217.91,2.2929]
[1733887223497,11.11029498,217.97,217.88,5.40913165]
[1733887224006,2.2926,217.96,217.91,2.2929]
[1733887224303,11.11029498,217.97,217.87,2.7]
[1733887225402,11.11029498,217.94,217.84,43.0236752]
[1733887225606,11.11029498,217.91,217.84,45.7236752]
[1733887225905,2.2933,217.88,217.84,43.0236752]
[1733887228205,2.2936,217.85,217.74,51.99003417]
[1733887228406,11.11029498,217.88,217.76,2.7]
[1733887228607,1.3687,217.87,217.76,2.7]
[1733887228909,1.356,217.9,217.77,16.70873429]
[1733887229104,11.11029498,217.91,217.8,11.11029498]
[1733887229300,1.4142,217.95,217.81,2.7]
[1733887229500,2.7824,217.98,217.81,2.7]
[1733887229501,2.7824,217.98,217.86,11.11029498]
[1733887229706,2.7824,217.98,217.87,2.7]
[1733887230003,1.3687,217.98,217.87,2.7]
[1733887230309,2.2921,218.0,217.87,2.7]
[1733887231302,2.2921,218.0,217.94,2.2926]
[1733887233712,2.2923,217.98,217.92,2.2929]
[1733887233901,11.11029498,217.96,217.91,2.7]
[1733887234316,2.2926,217.95,217.89,2.2931]
[1733887234706,11.11029498,217.96,217.87,2.7]
[1733887234906,11.11029498,217.93,217.83,2.7]
[1733887235203,11.11029498,217.96,217.83,2.7]
[1733887236610,2.2927,217.94,217.89,2.2932]
[1733887240420,2.2928,217.93,217.88,2.2933]
[1733887241212,7.11874577,217.9,217.83,7.11874577]
[1733887241415,1.474,217.97,217.89,7.11874577]
[1733887241611,7.11874577,217.98,217.91,7.11874577]
[1733887241812,7.11874577,218.0,217.96,2.2924]
[1733887242313,7.11874577,218.0,217.92,2.68]
[1733887242512,5.63881272,218.03,217.92,2.68]
[1733887242513,7.11874577,217.98,217.92,2.68]
[1733887242810,5.63881272,218.03,217.88,2.68]
[1733887242811,7.11874577,217.96,217.88,2.68]
[1733887243015,7.11874577,217.96,217.88,9.79874577]
[1733887243216,11.11758177,217.99,217.88,2.68]
[1733887243711,12.58878177,217.99,217.88,2.68]
[1733887244118,2.2925,217.96,217.91,2.2929]
[1733887245014,12.58878177,217.99,217.91,2.2929]
[1733887245325,12.58878177,217.99,217.87,2.68]